[Event "*** Titled Tuesday Blitz"]
[Site "Chess.com"]
[Date "2021.03.16"]
[Round "3"]
[White "NateSolon"]
[Black "rachidhuilda"]
[Result "1/2-1/2"]
[WhiteElo "2555"]
[BlackElo "2306"]
[TimeControl "180+1"]
[EndTime "10:29:44 PDT"]
[Termination "Game drawn by repetition"]

1. d4 {[%clk 0:03:00.9]} 1... Nf6 {[%clk 0:02:59.6]} 2. c4 {[%clk 0:03:00]} 2...
c5 {[%clk 0:02:59.6]} 3. d5 {[%clk 0:02:59.8]} 3... b5 {[%clk 0:02:59.2]} 4.
cxb5 {[%clk 0:03:00.1]} 4... a6 {[%clk 0:02:58.7]} 5. bxa6 {[%clk 0:03:00.4]}
5... g6 {[%clk 0:02:57.2]} 6. Nc3 {[%clk 0:03:00.6]} 6... Bg7 {[%clk 0:02:57.1]}
7. g3 {[%clk 0:03:00.7]} 7... O-O {[%clk 0:02:56.5]} 8. Bg2 {[%clk 0:03:00.9]}
8... d6 {[%clk 0:02:56.2]} 9. Nf3 {[%clk 0:03:00.3]} 9... Nbd7 {[%clk
0:02:54.9]} 10. O-O {[%clk 0:02:58.2]} 10... Nb6 {[%clk 0:02:54.9]} 11. Rb1
{[%clk 0:02:45]} 11... Bf5 {[%clk 0:02:54.3]} 12. Ra1 {[%clk 0:02:39.6]} 12...
Ne4 {[%clk 0:02:53.1]} 13. Nxe4 {[%clk 0:02:27.3]} 13... Bxe4 {[%clk 0:02:52.9]}
14. Ne1 {[%clk 0:02:28]} 14... Bxg2 {[%clk 0:02:36.5]} 15. Nxg2 {[%clk
0:02:27.9]} 15... Rxa6 {[%clk 0:02:28.9]} 16. e4 {[%clk 0:02:21]} 16... Qa8
{[%clk 0:02:23.6]} 17. a3 {[%clk 0:02:16.3]} 17... Rb8 {[%clk 0:02:21.4]} 18.
Qc2 {[%clk 0:01:37.9]} 18... Na4 {[%clk 0:02:01.9]} 19. Rb1 {[%clk 0:01:37.7]}
19... Rab6 {[%clk 0:01:43.6]} 20. Ne3 {[%clk 0:01:31]} 20... Nxb2 {[%clk
0:01:25]} 21. Bxb2 {[%clk 0:01:23.9]} 21... Rxb2 {[%clk 0:01:23.4]} 22. Rxb2
{[%clk 0:01:21.4]} 22... Rxb2 {[%clk 0:01:23.1]} 23. Qd3 {[%clk 0:01:21.5]}
23... Qa4 {[%clk 0:01:13.8]} 24. Nc4 {[%clk 0:01:18.9]} 24... Rb3 {[%clk
0:01:07.4]} 25. Qe2 {[%clk 0:01:15.1]} 25... Qa6 {[%clk 0:00:55.7]} 26. Rc1
{[%clk 0:01:06.9]} 26... Rxa3 {[%clk 0:00:51.4]} 27. Kg2 {[%clk 0:01:03]} 27...
Ra2 {[%clk 0:00:50.4]} 28. Qg4 {[%clk 0:00:58.3]} 28... Bd4 {[%clk 0:00:44.5]}
29. Qd7 {[%clk 0:00:58.4]} 29... Rxf2+ {[%clk 0:00:43.1]} 30. Kh3 {[%clk
0:00:58.6]} 30... Bf6 {[%clk 0:00:30.4]} 31. e5 {[%clk 0:00:32.5]} 31... dxe5
{[%clk 0:00:29.8]} 32. d6 {[%clk 0:00:31.1]} 32... exd6 {[%clk 0:00:24.7]} 33.
Nxd6 {[%clk 0:00:31.5]} 33... Bg5 {[%clk 0:00:17.7]} 34. Qe8+ {[%clk 0:00:31.6]}
34... Kg7 {[%clk 0:00:17.3]} 35. Qxe5+ {[%clk 0:00:32.5]} 35... Bf6 {[%clk
0:00:16.5]} 36. Ne8+ {[%clk 0:00:32.8]} 36... Kf8 {[%clk 0:00:14.9]} 37. Nxf6
{[%clk 0:00:31.9]} 37... Qxf6 {[%clk 0:00:14.9]} 38. Qxc5+ {[%clk 0:00:30.1]}
38... Kg7 {[%clk 0:00:15.2]} 39. Qc3 {[%clk 0:00:29.8]} 39... Qxc3 {[%clk
0:00:14.8]} 40. Rxc3 {[%clk 0:00:30.7]} 40... Rf5 {[%clk 0:00:14.3]} 41. Kg2
{[%clk 0:00:30.6]} 41... h5 {[%clk 0:00:14.8]} 42. h4 {[%clk 0:00:30.5]} 42...
Rf6 {[%clk 0:00:15.4]} 43. Rc4 {[%clk 0:00:30.9]} 43... Re6 {[%clk 0:00:16.3]}
44. Rd4 {[%clk 0:00:31.1]} 44... Rf6 {[%clk 0:00:17.2]} 45. Rc4 {[%clk
0:00:31.5]} 45... Rf5 {[%clk 0:00:17.8]} 46. Rd4 {[%clk 0:00:31.9]} 46... f6
{[%clk 0:00:15.5]} 47. Rd7+ {[%clk 0:00:30.6]} 47... Kh6 {[%clk 0:00:15.9]} 48.
Rd4 {[%clk 0:00:31.3]} 48... g5 {[%clk 0:00:15.9]} 49. hxg5+ {[%clk 0:00:31.5]}
49... fxg5 {[%clk 0:00:16]} 50. Rd6+ {[%clk 0:00:31.6]} 50... Kg7 {[%clk
0:00:16.4]} 51. Ra6 {[%clk 0:00:32.2]} 51... Rf6 {[%clk 0:00:15.7]} 52. Ra7+
{[%clk 0:00:31.9]} 52... Kg6 {[%clk 0:00:16.2]} 53. Ra5 {[%clk 0:00:32.6]} 53...
Rc6 {[%clk 0:00:16.5]} 54. Rb5 {[%clk 0:00:32.7]} 54... Rc2+ {[%clk 0:00:16.4]}
55. Kf3 {[%clk 0:00:32.1]} 55... Rc6 {[%clk 0:00:16.2]} 56. Ra5 {[%clk
0:00:31.9]} 56... Rf6+ {[%clk 0:00:17.1]} 57. Kg2 {[%clk 0:00:32]} 57... g4
{[%clk 0:00:17.2]} 58. Rb5 {[%clk 0:00:32.1]} 58... Rf5 {[%clk 0:00:17.6]} 59.
Rb6+ {[%clk 0:00:32.5]} 59... Kg5 {[%clk 0:00:18.2]} 60. Rb4 {[%clk 0:00:32.8]}
60... Rd5 {[%clk 0:00:18.4]} 61. Rb2 {[%clk 0:00:30.4]} 61... Re5 {[%clk
0:00:17.9]} 62. Ra2 {[%clk 0:00:30.5]} 62... Rf5 {[%clk 0:00:18.3]} 63. Rb2
{[%clk 0:00:30.7]} 63... Re5 {[%clk 0:00:18.6]} 64. Ra2 {[%clk 0:00:30.9]} 64...
Rd5 {[%clk 0:00:18.6]} 65. Rb2 {[%clk 0:00:31.1]} 65... h4 {[%clk 0:00:17.7]}
66. gxh4+ {[%clk 0:00:31]} 66... Kxh4 {[%clk 0:00:18.6]} 67. Rb3 {[%clk
0:00:30.6]} 67... Rd2+ {[%clk 0:00:18.5]} 68. Kg1 {[%clk 0:00:30.5]} 68... Re2
{[%clk 0:00:18.3]} 69. Ra3 {[%clk 0:00:30.5]} 69... Rc2 {[%clk 0:00:17.2]} 70.
Rb3 {[%clk 0:00:30.7]} 70... Ra2 {[%clk 0:00:14]} 71. Rc3 {[%clk 0:00:30.8]}
71... Ra4 {[%clk 0:00:13.4]} 72. Rb3 {[%clk 0:00:30.4]} 72... Rf4 {[%clk
0:00:13.8]} 73. Rc3 {[%clk 0:00:27.6]} 73... Rf5 {[%clk 0:00:11.2]} 74. Ra3
{[%clk 0:00:27.3]} 74... Re5 {[%clk 0:00:11.2]} 75. Rb3 {[%clk 0:00:27.5]} 75...
Re1+ {[%clk 0:00:11.3]} 76. Kg2 {[%clk 0:00:26.2]} 76... Re2+ {[%clk 0:00:11.5]}
77. Kg1 {[%clk 0:00:26.2]} 77... Re4 {[%clk 0:00:11.1]} 78. Ra3 {[%clk
0:00:26.2]} 78... Rf4 {[%clk 0:00:11]} 79. Rb3 {[%clk 0:00:26.4]} 79... Rf3
{[%clk 0:00:11]} 80. Rxf3 {[%clk 0:00:26.4]} 80... gxf3 {[%clk 0:00:11.9]} 81.
Kf2 {[%clk 0:00:27.1]} 81... Kg4 {[%clk 0:00:12.4]} 82. Kf1 {[%clk 0:00:27.6]}
82... Kf4 {[%clk 0:00:12.5]} 83. Kf2 {[%clk 0:00:28]} 83... Ke4 {[%clk
0:00:12.7]} 84. Kf1 {[%clk 0:00:28.4]} 84... Kf5 {[%clk 0:00:13.4]} 85. Kf2
{[%clk 0:00:28.7]} 85... Ke4 {[%clk 0:00:14.1]} 86. Kf1 {[%clk 0:00:29]} 86...
Ke3 {[%clk 0:00:14.7]} 87. Ke1 {[%clk 0:00:29.4]} 87... Kf4 {[%clk 0:00:14.6]}
88. Kf2 {[%clk 0:00:29.8]} 88... Kg4 {[%clk 0:00:15]} 89. Kf1 {[%clk 0:00:29.7]}
89... Kh3 {[%clk 0:00:15.4]} 90. Kf2 {[%clk 0:00:29.9]} 90... Kg4 {[%clk
0:00:15.9]} 1/2-1/2

[Event "*** Titled Tuesday Blitz"]
[Site "Chess.com"]
[Date "2021.03.16"]
[Round "3"]
[White "IwkooO"]
[Black "SergeyShtyka"]
[Result "1-0"]
[WhiteElo "2617"]
[BlackElo "2403"]
[TimeControl "180+1"]
[EndTime "10:29:51 PDT"]
[Termination "IwkooO won on time"]

1. e4 {[%clk 0:02:51.1]} 1... c5 {[%clk 0:02:59.7]} 2. Nc3 {[%clk 0:02:50.6]}
2... Nc6 {[%clk 0:02:59.6]} 3. Nge2 {[%clk 0:02:50.6]} 3... g6 {[%clk 0:03:00]}
4. d4 {[%clk 0:02:51]} 4... cxd4 {[%clk 0:03:00.4]} 5. Nxd4 {[%clk 0:02:51.9]}
5... Bg7 {[%clk 0:03:00.9]} 6. Be3 {[%clk 0:02:52.4]} 6... d6 {[%clk 0:02:57.7]}
7. Qd2 {[%clk 0:02:44.1]} 7... Nf6 {[%clk 0:02:57.3]} 8. f3 {[%clk 0:02:43.1]}
8... O-O {[%clk 0:02:56.5]} 9. Bc4 {[%clk 0:02:43.4]} 9... Bd7 {[%clk
0:02:53.4]} 10. O-O-O {[%clk 0:02:42.9]} 10... Qa5 {[%clk 0:02:51]} 11. Kb1
{[%clk 0:02:40.4]} 11... Rfc8 {[%clk 0:02:50.8]} 12. Bb3 {[%clk 0:02:39.6]}
12... Ne5 {[%clk 0:02:51]} 13. g4 {[%clk 0:02:11.4]} 13... Nc4 {[%clk
0:02:48.5]} 14. Bxc4 {[%clk 0:02:11.3]} 14... Rxc4 {[%clk 0:02:47.5]} 15. h4
{[%clk 0:02:07]} 15... Rac8 {[%clk 0:02:45.1]} 16. h5 {[%clk 0:01:59.2]} 16...
Rxc3 {[%clk 0:02:41]} 17. bxc3 {[%clk 0:01:59.1]} 17... Bxg4 {[%clk 0:02:40]}
18. Nb3 {[%clk 0:01:36.4]} 18... Qa4 {[%clk 0:02:06.5]} 19. Qe2 {[%clk
0:01:25.9]} 19... Nxe4 {[%clk 0:01:57]} 20. Bd2 {[%clk 0:01:21.7]} 20... Nxd2+
{[%clk 0:01:28.8]} 21. Rxd2 {[%clk 0:01:22.6]} 21... Bxc3 {[%clk 0:01:24.8]} 22.
Rd3 {[%clk 0:00:59.5]} 22... Bf5 {[%clk 0:01:12.8]} 23. hxg6 {[%clk 0:00:59]}
23... Qa3 {[%clk 0:00:40.3]} 24. Rxc3 {[%clk 0:00:33.3]} 24... Rxc3 {[%clk
0:00:39.7]} 25. gxh7+ {[%clk 0:00:20.3]} 25... Bxh7 {[%clk 0:00:39.5]} 26. Qxe7
{[%clk 0:00:07.2]} 26... Rxb3+ {[%clk 0:00:25.4]} 27. axb3 {[%clk 0:00:07]}
27... Qxb3+ {[%clk 0:00:25.5]} 28. Ka1 {[%clk 0:00:07.7]} 28... Qa4+ {[%clk
0:00:24.1]} 29. Kb1 {[%clk 0:00:07.5]} 29... Qxc2+ {[%clk 0:00:23.6]} 30. Ka1
{[%clk 0:00:07.5]} 30... Qa4+ {[%clk 0:00:22.9]} 31. Kb2 {[%clk 0:00:08.1]}
31... Qb4+ {[%clk 0:00:22.7]} 32. Ka2 {[%clk 0:00:08.2]} 32... Qd2+ {[%clk
0:00:19.4]} 33. Ka1 {[%clk 0:00:07.5]} 33... Qc3+ {[%clk 0:00:18.2]} 34. Ka2
{[%clk 0:00:08.1]} 34... Qxf3 {[%clk 0:00:10.2]} 35. Qg5+ {[%clk 0:00:08.2]}
35... Kf8 {[%clk 0:00:07.4]} 36. Qd8+ {[%clk 0:00:07.9]} 36... Kg7 {[%clk
0:00:07.6]} 37. Qg5+ {[%clk 0:00:08.4]} 37... Bg6 {[%clk 0:00:08]} 38. Qh6+
{[%clk 0:00:08.7]} 38... Kf6 {[%clk 0:00:07.5]} 39. Qh8+ {[%clk 0:00:09.3]}
39... Ke6 {[%clk 0:00:06.7]} 40. Re1+ {[%clk 0:00:09.7]} 40... Be4 {[%clk
0:00:05.5]} 41. Qd4 {[%clk 0:00:06.9]} 41... f5 {[%clk 0:00:04.6]} 42. Qc4+
{[%clk 0:00:06.5]} 42... d5 {[%clk 0:00:03.3]} 43. Qc8+ {[%clk 0:00:07]} 43...
Ke5 {[%clk 0:00:03]} 44. Qe8+ {[%clk 0:00:06.6]} 44... Kf4 {[%clk 0:00:03.1]}
45. Qb8+ {[%clk 0:00:07]} 45... Kg5 {[%clk 0:00:02.9]} 46. Rg1+ {[%clk
0:00:07.2]} 46... Kf6 {[%clk 0:00:03.2]} 47. Qd8+ {[%clk 0:00:06.7]} 47... Ke5
{[%clk 0:00:03.1]} 48. Qh8+ {[%clk 0:00:06.6]} 48... Kd6 {[%clk 0:00:02.8]} 49.
Rg6+ {[%clk 0:00:06.5]} 49... Kc5 {[%clk 0:00:03.1]} 50. Qf8+ {[%clk 0:00:05.8]}
50... Kd4 {[%clk 0:00:02.7]} 51. Qb4+ {[%clk 0:00:06.3]} 51... Kd3 {[%clk
0:00:02.7]} 52. Rg3 {[%clk 0:00:04.5]} 52... Qxg3 {[%clk 0:00:02.4]} 53. Qb3+
{[%clk 0:00:04.9]} 53... Ke2 {[%clk 0:00:02.8]} 54. Qxg3 {[%clk 0:00:05.8]}
54... d4 {[%clk 0:00:03.1]} 55. Kb2 {[%clk 0:00:05.2]} 55... d3 {[%clk
0:00:03.6]} 56. Kc3 {[%clk 0:00:05.8]} 56... b5 {[%clk 0:00:03.8]} 57. Qh2+
{[%clk 0:00:03.8]} 57... Ke3 {[%clk 0:00:03.1]} 58. Qd2+ {[%clk 0:00:03.9]}
58... Kf3 {[%clk 0:00:03.2]} 59. Qb2 {[%clk 0:00:04.5]} 59... a5 {[%clk
0:00:03]} 60. Kd2 {[%clk 0:00:04.9]} 60... b4 {[%clk 0:00:03.2]} 61. Qa2 {[%clk
0:00:05.4]} 61... a4 {[%clk 0:00:02.6]} 62. Qxa4 {[%clk 0:00:05.7]} 62... f4
{[%clk 0:00:03.1]} 63. Qxb4 {[%clk 0:00:06.1]} 63... Bf5 {[%clk 0:00:02.7]} 64.
Qd4 {[%clk 0:00:06.6]} 64... Be4 {[%clk 0:00:02.2]} 65. Qg1 {[%clk 0:00:06.9]}
65... Bf5 {[%clk 0:00:02.4]} 66. Ke1 {[%clk 0:00:06.8]} 66... Ke4 {[%clk
0:00:02.6]} 67. Qf2 {[%clk 0:00:07.2]} 67... f3 {[%clk 0:00:02.3]} 68. Kd2
{[%clk 0:00:07.8]} 68... Kf4 {[%clk 0:00:02.9]} 69. Qe3+ {[%clk 0:00:07.8]}
69... Kg3 {[%clk 0:00:02.7]} 70. Ke1 {[%clk 0:00:07.9]} 70... Kg4 {[%clk
0:00:02.9]} 71. Kf2 {[%clk 0:00:07.8]} 71... Bg6 {[%clk 0:00:03.3]} 72. Qxf3+
{[%clk 0:00:08.1]} 72... Kg5 {[%clk 0:00:03.7]} 73. Ke3 {[%clk 0:00:08.6]} 73...
Bf5 {[%clk 0:00:03.9]} 74. Qf4+ {[%clk 0:00:08.9]} 74... Kf6 {[%clk 0:00:04.1]}
75. Kd4 {[%clk 0:00:09.5]} 1-0

[Event "*** Titled Tuesday Blitz"]
[Site "Chess.com"]
[Date "2021.03.16"]
[Round "3"]
[White "annacramling"]
[Black "ViktoriyaTarasova"]
[Result "0-1"]
[WhiteElo "2002"]
[BlackElo "2355"]
[TimeControl "180+1"]
[EndTime "10:29:52 PDT"]
[Termination "ViktoriyaTarasova won on time"]

1. d4 {[%clk 0:03:00.9]} 1... Nf6 {[%clk 0:02:59.7]} 2. c4 {[%clk 0:03:00.3]}
2... e6 {[%clk 0:03:00.3]} 3. Nc3 {[%clk 0:02:58.4]} 3... Bb4 {[%clk 0:03:00.3]}
4. Qc2 {[%clk 0:02:53.9]} 4... d5 {[%clk 0:02:59]} 5. cxd5 {[%clk 0:02:51.5]}
5... exd5 {[%clk 0:02:58.9]} 6. Bg5 {[%clk 0:02:50]} 6... h6 {[%clk 0:02:58.5]}
7. Bh4 {[%clk 0:02:49.3]} 7... g5 {[%clk 0:02:58]} 8. Bg3 {[%clk 0:02:46.4]}
8... Nc6 {[%clk 0:02:57.1]} 9. e3 {[%clk 0:02:46.2]} 9... h5 {[%clk 0:02:57.1]}
10. h4 {[%clk 0:02:42.4]} 10... Ne4 {[%clk 0:02:53.8]} 11. Bd3 {[%clk
0:02:19.8]} 11... Nxg3 {[%clk 0:02:46]} 12. fxg3 {[%clk 0:02:20.7]} 12... Bg4
{[%clk 0:02:17.5]} 13. Nf3 {[%clk 0:02:06.6]} 13... Bxf3 {[%clk 0:01:38.9]} 14.
gxf3 {[%clk 0:02:01.6]} 14... Qe7 {[%clk 0:01:39.5]} 15. O-O-O {[%clk
0:01:41.8]} 15... Qxe3+ {[%clk 0:01:36.8]} 16. Kb1 {[%clk 0:01:41.6]} 16...
O-O-O {[%clk 0:01:29.1]} 17. Rhe1 {[%clk 0:00:54.4]} 17... Qxf3 {[%clk
0:01:22.6]} 18. Bf5+ {[%clk 0:00:52.2]} 18... Kb8 {[%clk 0:01:21.8]} 19. hxg5
{[%clk 0:00:35.9]} 19... Qxg3 {[%clk 0:01:14.6]} 20. Rg1 {[%clk 0:00:30.7]}
20... Qd6 {[%clk 0:01:07.4]} 21. Nb5 {[%clk 0:00:29.3]} 21... Qf8 {[%clk
0:01:05.2]} 22. a3 {[%clk 0:00:20]} 22... Be7 {[%clk 0:01:04.4]} 23. Qh2 {[%clk
0:00:10.5]} 23... Bd6 {[%clk 0:01:01.5]} 24. Nxd6 {[%clk 0:00:10.3]} 24... Qxd6
{[%clk 0:01:01.7]} 25. Qc2 {[%clk 0:00:08.3]} 25... h4 {[%clk 0:00:58.3]} 26. g6
{[%clk 0:00:08.1]} 26... fxg6 {[%clk 0:00:32.2]} 27. Rxg6 {[%clk 0:00:09]} 27...
Qe7 {[%clk 0:00:32.2]} 28. Re6 {[%clk 0:00:08.1]} 28... Qd7 {[%clk 0:00:24.5]}
29. Rh6 {[%clk 0:00:04.2]} 29... Qf7 {[%clk 0:00:13.1]} 30. Rxh8 {[%clk
0:00:03.3]} 30... Rxh8 {[%clk 0:00:12.9]} 31. Re1 {[%clk 0:00:03]} 31... h3
{[%clk 0:00:12]} 32. Be6 {[%clk 0:00:02.7]} 32... Qg7 {[%clk 0:00:10.9]} 33.
Bxd5 {[%clk 0:00:02.9]} 33... Nxd4 {[%clk 0:00:10.2]} 34. Qf2 {[%clk 0:00:03]}
34... h2 {[%clk 0:00:09.4]} 35. Rh1 {[%clk 0:00:02.6]} 35... c6 {[%clk
0:00:09.1]} 36. Bg2 {[%clk 0:00:02.2]} 36... Ka8 {[%clk 0:00:09]} 37. Qd2 {[%clk
0:00:01.8]} 37... Qg6+ {[%clk 0:00:09]} 38. Ka2 {[%clk 0:00:01.3]} 38... Nb5
{[%clk 0:00:08.7]} 39. Ka1 {[%clk 0:00:01.7]} 39... Qg7 {[%clk 0:00:08.1]} 40.
Bf3 {[%clk 0:00:01.7]} 40... a6 {[%clk 0:00:07.3]} 41. Qg2 {[%clk 0:00:02]}
41... Nd4 {[%clk 0:00:07.4]} 42. Qxg7 {[%clk 0:00:01.5]} 42... Nb3+ {[%clk
0:00:08.1]} 43. Ka2 {[%clk 0:00:01.5]} 43... Nc1+ {[%clk 0:00:07.5]} 44. Kb1
{[%clk 0:00:01.2]} 44... Rd8 {[%clk 0:00:06.2]} 45. Qh8 {[%clk 0:00:02.1]} 45...
Rxh8 {[%clk 0:00:05.4]} 46. Rxc1 {[%clk 0:00:02.8]} 46... Ka7 {[%clk 0:00:06]}
47. Rh1 {[%clk 0:00:03.4]} 47... Rh3 {[%clk 0:00:05.9]} 48. Kc2 {[%clk
0:00:04.3]} 48... Rxf3 {[%clk 0:00:05.8]} 49. Rxh2 {[%clk 0:00:04.9]} 49... Rg3
{[%clk 0:00:06.4]} 50. Kb1 {[%clk 0:00:04.1]} 50... Rf3 {[%clk 0:00:06.7]} 51.
Ka2 {[%clk 0:00:04.3]} 51... Rf5 {[%clk 0:00:07.1]} 52. b4 {[%clk 0:00:04.7]}
52... Rd5 {[%clk 0:00:07.7]} 53. Kb3 {[%clk 0:00:05.2]} 53... Kb6 {[%clk
0:00:08.1]} 54. a4 {[%clk 0:00:05.5]} 54... a5 {[%clk 0:00:08.2]} 55. Rh7 {[%clk
0:00:04.2]} 55... axb4 {[%clk 0:00:07.4]} 56. Kxb4 {[%clk 0:00:04.7]} 56... Rg5
{[%clk 0:00:07.6]} 57. Rf7 {[%clk 0:00:04.1]} 57... Rg4+ {[%clk 0:00:07.3]} 58.
Kb3 {[%clk 0:00:03.9]} 58... Ka6 {[%clk 0:00:07.8]} 59. Ka3 {[%clk 0:00:03.6]}
59... b6 {[%clk 0:00:07.7]} 60. Kb3 {[%clk 0:00:03.8]} 60... c5 {[%clk
0:00:07.6]} 61. Rf6 {[%clk 0:00:03.6]} 61... Rb4+ {[%clk 0:00:07.8]} 62. Ka3
{[%clk 0:00:03.7]} 62... Rg4 {[%clk 0:00:08.3]} 63. Kb3 {[%clk 0:00:03.7]} 63...
Ka5 {[%clk 0:00:08.4]} 64. Rf8 {[%clk 0:00:02.7]} 64... Rb4+ {[%clk 0:00:08.4]}
65. Kc3 {[%clk 0:00:02]} 65... Rxa4 {[%clk 0:00:08.7]} 66. Ra8+ {[%clk
0:00:02.2]} 66... Kb5 {[%clk 0:00:09.2]} 67. Rb8 {[%clk 0:00:02.2]} 67... Ra3+
{[%clk 0:00:09.3]} 68. Kb2 {[%clk 0:00:02.2]} 68... Rg3 {[%clk 0:00:09.7]} 69.
Re8 {[%clk 0:00:01.6]} 69... Ka5 {[%clk 0:00:09.8]} 70. Ka2 {[%clk 0:00:01.5]}
70... b5 {[%clk 0:00:09.5]} 71. Ra8+ {[%clk 0:00:02.3]} 71... Kb4 {[%clk
0:00:09.3]} 72. Rb8 {[%clk 0:00:02.8]} 72... c4 {[%clk 0:00:09.3]} 73. Rf8
{[%clk 0:00:02.9]} 73... Rg2+ {[%clk 0:00:09.6]} 74. Kb1 {[%clk 0:00:02.6]}
74... Kb3 {[%clk 0:00:09.2]} 75. Kc1 {[%clk 0:00:01.9]} 75... c3 {[%clk
0:00:09]} 76. Kd1 {[%clk 0:00:01]} 76... c2+ {[%clk 0:00:08.7]} 0-1

[Event "*** Titled Tuesday Blitz"]
[Site "Chess.com"]
[Date "2021.03.16"]
[Round "3"]
[White "Thee-Chessboy"]
[Black "ChristopherYoo"]
[Result "0-1"]
[WhiteElo "2496"]
[BlackElo "2897"]
[TimeControl "180+1"]
[EndTime "10:29:57 PDT"]
[Termination "ChristopherYoo won by resignation"]

1. d4 {[%clk 0:03:00.9]} 1... Nf6 {[%clk 0:02:59.2]} 2. c4 {[%clk 0:03:00.9]}
2... e6 {[%clk 0:02:59.1]} 3. Nf3 {[%clk 0:03:01.1]} 3... d5 {[%clk 0:02:59.5]}
4. g3 {[%clk 0:03:01]} 4... Be7 {[%clk 0:02:59]} 5. Bg2 {[%clk 0:03:00.5]} 5...
O-O {[%clk 0:02:59.3]} 6. O-O {[%clk 0:03:01.1]} 6... dxc4 {[%clk 0:02:59.8]} 7.
Ne5 {[%clk 0:03:01.3]} 7... Nc6 {[%clk 0:02:59.5]} 8. Bxc6 {[%clk 0:03:01.7]}
8... bxc6 {[%clk 0:03:00.4]} 9. Nxc6 {[%clk 0:03:02.4]} 9... Qe8 {[%clk
0:03:00.9]} 10. Nxe7+ {[%clk 0:03:03.3]} 10... Qxe7 {[%clk 0:03:01.8]} 11. b3
{[%clk 0:03:03.7]} 11... Rd8 {[%clk 0:02:45.2]} 12. bxc4 {[%clk 0:03:01.7]}
12... e5 {[%clk 0:02:42.9]} 13. d5 {[%clk 0:02:58.7]} 13... Qc5 {[%clk
0:01:47.2]} 14. Qb3 {[%clk 0:02:53]} 14... Bh3 {[%clk 0:01:34.5]} 15. Be3 {[%clk
0:02:52.7]} 15... Qd6 {[%clk 0:01:32.1]} 16. Rd1 {[%clk 0:02:50.9]} 16... Ng4
{[%clk 0:01:24]} 17. f3 {[%clk 0:02:41.4]} 17... Rab8 {[%clk 0:01:22.3]} 18. Qc3
{[%clk 0:02:41.3]} 18... Nxe3 {[%clk 0:01:16.9]} 19. Qxe3 {[%clk 0:02:42.2]}
19... e4 {[%clk 0:01:07.6]} 20. fxe4 {[%clk 0:02:33.3]} 20... Re8 {[%clk
0:01:03.2]} 21. Nd2 {[%clk 0:02:33]} 21... Bf5 {[%clk 0:00:52.6]} 22. Qd4 {[%clk
0:02:29.2]} 22... c5 {[%clk 0:00:47.7]} 23. Qd3 {[%clk 0:02:20]} 23... Bg6
{[%clk 0:00:47.5]} 24. Rab1 {[%clk 0:02:19.1]} 24... Qe5 {[%clk 0:00:44.5]} 25.
Kf2 {[%clk 0:01:57.2]} 25... h5 {[%clk 0:00:41.3]} 26. Nf3 {[%clk 0:01:52.8]}
26... Qxe4 {[%clk 0:00:31]} 27. Qxe4 {[%clk 0:01:52.5]} 27... Bxe4 {[%clk
0:00:31.9]} 28. Rxb8 {[%clk 0:01:50.4]} 28... Rxb8 {[%clk 0:00:32.8]} 29. Rd2
{[%clk 0:01:45]} 29... f6 {[%clk 0:00:31.9]} 30. Ne1 {[%clk 0:01:39.4]} 30...
Kf7 {[%clk 0:00:32]} 31. Nd3 {[%clk 0:01:39.8]} 31... Rc8 {[%clk 0:00:26.2]} 32.
Rb2 {[%clk 0:01:37]} 32... Rc7 {[%clk 0:00:26.1]} 33. Rb8 {[%clk 0:01:35.7]}
33... Ke7 {[%clk 0:00:25.2]} 34. Ke3 {[%clk 0:01:33.6]} 34... Bf5 {[%clk
0:00:21.4]} 35. Nf4 {[%clk 0:01:23.8]} 35... Bg4 {[%clk 0:00:19.1]} 36. h3
{[%clk 0:01:21]} 36... Bf5 {[%clk 0:00:17.5]} 37. Nxh5 {[%clk 0:01:19.8]} 37...
g6 {[%clk 0:00:13]} 38. Nf4 {[%clk 0:01:16.9]} 38... g5 {[%clk 0:00:13]} 39. Nd3
{[%clk 0:01:12.5]} 39... Bxh3 {[%clk 0:00:12.6]} 40. a4 {[%clk 0:01:09.5]} 40...
Kd6 {[%clk 0:00:11.9]} 41. Rf8 {[%clk 0:01:08.2]} 41... Re7+ {[%clk 0:00:06]}
42. Kd2 {[%clk 0:01:07.2]} 42... Re4 {[%clk 0:00:05.8]} 43. Rxf6+ {[%clk
0:00:56.5]} 43... Ke7 {[%clk 0:00:05.5]} 44. Rh6 {[%clk 0:00:53.7]} 44... Bg4
{[%clk 0:00:04.3]} 45. Rc6 {[%clk 0:00:45.7]} 45... Rxc4 {[%clk 0:00:02.6]} 46.
Rxc5 {[%clk 0:00:44.3]} 46... Rxa4 {[%clk 0:00:02.6]} 47. Ne5 {[%clk 0:00:40.3]}
47... Kd6 {[%clk 0:00:01.6]} 48. Nd3 {[%clk 0:00:34.2]} 48... Bf5 {[%clk
0:00:01.9]} 49. Rb5 {[%clk 0:00:32.7]} 49... a6 {[%clk 0:00:02.1]} 50. Rb6+
{[%clk 0:00:28.2]} 50... Kxd5 {[%clk 0:00:02.1]} 51. Nf2 {[%clk 0:00:26.7]}
51... Ra2+ {[%clk 0:00:02]} 52. Ke3 {[%clk 0:00:25.5]} 52... Ra3+ {[%clk
0:00:02.3]} 53. Nd3 {[%clk 0:00:23.2]} 53... a5 {[%clk 0:00:02.8]} 54. Rb5+
{[%clk 0:00:20.6]} 54... Ke6 {[%clk 0:00:03.1]} 55. g4 {[%clk 0:00:20.3]} 55...
Bxd3 {[%clk 0:00:01.7]} 56. Rxg5 {[%clk 0:00:20.6]} 56... Bc4+ {[%clk
0:00:01.6]} 57. Kd4 {[%clk 0:00:20.2]} 57... Ra4 {[%clk 0:00:01.9]} 58. Kc5
{[%clk 0:00:19]} 58... Bxe2 {[%clk 0:00:01.8]} 59. Rg8 {[%clk 0:00:19.1]} 59...
Bxg4 {[%clk 0:00:01.7]} 60. Re8+ {[%clk 0:00:17.6]} 60... Kd7 {[%clk 0:00:01.7]}
61. Rg8 {[%clk 0:00:17.1]} 61... Be6 {[%clk 0:00:01.4]} 62. Rg7+ {[%clk
0:00:18]} 62... Kc8 {[%clk 0:00:01.7]} 63. Kd6 {[%clk 0:00:18.1]} 63... Bc4
{[%clk 0:00:02]} 64. Kc6 {[%clk 0:00:18.2]} 64... Kb8 {[%clk 0:00:02.1]} 65.
Rb7+ {[%clk 0:00:17.1]} 65... Ka8 {[%clk 0:00:02.3]} 66. Re7 {[%clk 0:00:18]}
66... Rb4 {[%clk 0:00:02.7]} 67. Kc5 {[%clk 0:00:17.8]} 67... Ba6 {[%clk
0:00:02.6]} 68. Re8+ {[%clk 0:00:17.7]} 68... Ka7 {[%clk 0:00:03]} 69. Re7+
{[%clk 0:00:18]} 69... Bb7 {[%clk 0:00:03.4]} 70. Re3 {[%clk 0:00:16.7]} 70...
Rb6 {[%clk 0:00:03.6]} 71. Ra3 {[%clk 0:00:15.8]} 71... Ka6 {[%clk 0:00:04]} 72.
Ra4 {[%clk 0:00:13.9]} 72... Rb5+ {[%clk 0:00:04]} 73. Kc4 {[%clk 0:00:13.6]}
73... Bd5+ {[%clk 0:00:04.9]} 74. Kc3 {[%clk 0:00:13.4]} 74... Kb6 {[%clk
0:00:05.8]} 75. Ra1 {[%clk 0:00:12.4]} 75... Kc5 {[%clk 0:00:06.1]} 76. Kd3
{[%clk 0:00:11.7]} 76... Rb3+ {[%clk 0:00:06.1]} 77. Kc2 {[%clk 0:00:11.6]}
77... Kb4 {[%clk 0:00:07]} 78. Rd1 {[%clk 0:00:10.6]} 78... Be4+ {[%clk
0:00:07.3]} 79. Kc1 {[%clk 0:00:09.8]} 79... Kc3 {[%clk 0:00:06.9]} 0-1